bitfinex-derivatives/quotes_BNBF0:USTF0_20250709
["timestamp","ask_amount","ask_price","bid_price","bid_amount"]
[1752057333172,1.70187798,659.49,659.04,2.26966665]
[1752057336282,1.70187798,659.48,659.05,2.26966665]
[1752057339282,1.70187798,659.48,659.06,2.26966665]
[1752057342884,1.70187798,659.48,659.05,2.26966665]
[1752057343186,1.70187798,659.48,659.06,2.26966665]
[1752057343686,1.70187798,659.48,659.05,2.26966665]
[1752057344383,1.70187798,659.49,659.04,2.26966665]
[1752057346290,1.70187798,659.53,658.96,2.26966665]
[1752057346985,1.70187798,659.52,658.96,2.26966665]
[1752057347384,1.70187798,659.52,658.97,1.958]
[1752057348390,1.70187798,659.53,658.97,1.958]
[1752057348890,1.70187798,659.52,658.97,1.958]
[1752057349189,1.70187798,659.53,658.97,1.958]
[1752057349587,1.70187798,659.52,658.97,1.958]
[1752057356102,1.70187798,659.48,659.05,2.26966665]
[1752057356602,1.70187798,659.49,659.04,2.26966665]
[1752057358402,1.70187798,659.62,658.97,1.958]
[1752057358601,1.70187798,659.63,658.97,1.958]
[1752057359196,1.70187798,659.67,658.97,1.958]
[1752057359499,1.70187798,659.68,658.97,1.958]
[1752057361304,1.70187798,659.68,658.88,2.26966665]
[1752057361504,1.70187798,659.7,658.87,2.26966665]
[1752057362006,1.70187798,659.69,658.9,2.26966665]
[1752057362314,1.70187798,659.7,658.89,2.26966665]
[1752057363205,1.70187798,659.7,658.83,0.26391627]
[1752057363206,1.70187798,659.7,658.88,2.26966665]
[1752057364210,1.70187798,659.71,658.88,2.26966665]
[1752057364409,1.70187798,659.7,658.89,2.682]
[1752057365309,1.70187798,659.71,658.89,2.682]
[1752057366711,1.70187798,659.72,658.89,4.95166665]
[1752057367108,1.70187798,659.72,658.89,2.682]
[1752057367312,1.70187798,659.72,658.89,4.95166665]
[1752057368210,1.70187798,659.69,658.98,2.26966665]
[1752057368708,1.70187798,659.69,658.99,2.26966665]
[1752057369113,1.70187798,659.68,658.99,2.26966665]
[1752057370214,1.70187798,659.69,658.99,2.26966665]
[1752057370810,1.70187798,659.68,659.0,2.26966665]
[1752057371214,1.70187798,659.69,659.0,2.26966665]
[1752057371712,1.70187798,659.68,659.01,2.26966665]
[1752057372311,1.70187798,659.69,659.0,2.26966665]
[1752057372911,1.70187798,659.67,659.03,2.26966665]
[1752057373414,1.70187798,659.68,659.03,2.26966665]
[1752057374614,1.70187798,659.67,659.04,2.26966665]
[1752057374918,1.70187798,659.84,658.89,2.682]
[1752057375911,1.70187798,659.81,658.89,2.682]
[1752057382320,1.70187798,659.81,658.83,0.26391627]
[1752057384823,1.70187798,659.72,658.83,2.53358292]
[1752057385817,1.70187798,659.72,658.84,2.592]
[1752057387020,1.70187798,659.72,658.84,4.86166665]
[1752057387526,1.70187798,659.69,658.9,2.26966665]
[1752057388428,1.70187798,659.68,658.94,2.26966665]
[1752057388625,1.70187798,659.65,659.02,2.26966665]
[1752057388829,1.70187798,659.64,659.02,2.26966665]
[1752057389226,1.70187798,659.63,659.04,2.26966665]
[1752057389425,1.70187798,659.63,659.05,2.26966665]
[1752057389629,1.70187798,659.64,659.03,2.26966665]
[1752057392231,1.70187798,659.64,659.04,2.26966665]
[1752057394926,1.70187798,659.63,659.04,2.26966665]
[1752057395926,1.70187798,659.69,658.93,2.26966665]
[1752057396628,1.70187798,659.69,658.84,2.592]
[1752057396629,1.70187798,659.65,659.02,2.26966665]
[1752057396827,1.70187798,659.64,659.05,2.26966665]
[1752057397330,1.70187798,659.65,659.03,2.26966665]
[1752057397531,1.70187798,659.65,659.02,2.26966665]
[1752057397731,1.70187798,659.65,659.04,2.26966665]
[1752057398329,1.70187798,659.66,659.05,2.26966665]
[1752057398528,2.26437664,659.79,658.84,2.592]
[1752057398529,1.70187798,659.67,659.06,2.26966665]
[1752057402135,1.70187798,659.67,659.07,2.26966665]
[1752057403535,1.70187798,659.68,659.03,2.26966665]
[1752057407743,1.70187798,659.69,659.02,2.26966665]
[1752057407942,1.70187798,659.7,658.98,2.26966665]
[1752057410739,7.92531824,660.95,658.92,2.26966665]
[1752057410740,1.70187798,659.72,658.92,2.26966665]
[1752057411045,1.70187798,659.69,658.89,2.26966665]
[1752057411942,1.70187798,659.69,658.91,2.26966665]
[1752057412343,1.70187798,659.68,658.92,2.26966665]
[1752057413146,1.70187798,659.68,658.91,2.26966665]
[1752057414244,1.70187798,659.68,658.92,2.26966665]
[1752057415147,1.70187798,659.67,658.92,2.26966665]
[1752057416150,1.70187798,659.67,658.93,2.26966665]
[1752057417152,1.70187798,659.66,658.93,2.26966665]
[1752057417649,1.70187798,659.69,658.87,2.26966665]
[1752057417853,1.70187798,659.68,658.88,2.26966665]
[1752057418152,1.70187798,659.68,658.89,2.26966665]
[1752057419251,1.70187798,659.67,658.89,2.26966665]
[1752057420050,1.70187798,659.67,658.9,2.26966665]
[1752057420752,1.70187798,659.66,658.93,2.26966665]
[1752057422751,1.70187798,659.65,658.92,2.26966665]
[1752057423050,1.70187798,659.62,658.9,2.26966665]
[1752057423352,1.70187798,659.62,658.89,2.26966665]
[1752057423553,1.70187798,659.59,658.87,2.26966665]
[1752057424253,1.70187798,659.6,658.86,2.26966665]
[1752057424451,1.70187798,659.55,658.97,2.26966665]
[1752057424850,1.70187798,659.54,658.85,2.26966665]
[1752057425154,1.70187798,659.54,658.84,2.592]
[1752057425454,1.70187798,659.53,658.84,2.592]
[1752057425955,1.70187798,659.55,658.83,0.26391627]
[1752057427653,1.70187798,659.56,658.83,0.26391627]
[1752057428954,1.70187798,659.58,658.83,0.26391627]
[1752057429654,1.70187798,659.58,658.84,1.867]
[1752057430155,1.70187798,659.59,658.84,1.867]
[1752057431058,1.70187798,659.58,658.84,1.867]
[1752057431358,1.70187798,659.59,658.84,1.867]
[1752057433257,1.70187798,659.6,658.84,1.867]
[1752057434455,1.70187798,659.59,658.84,1.867]
[1752057434656,1.70187798,659.58,658.84,1.867]
[1752057435856,1.70187798,659.57,658.84,1.867]
[1752057436156,1.70187798,659.58,658.84,1.867]
[1752057437857,1.69757457,659.58,658.84,1.867]
[1752057438862,1.69757457,659.56,658.84,1.867]
[1752057440657,1.69757457,659.54,658.85,2.26966665]
[1752057442157,1.69757457,659.55,658.85,2.26966665]
[1752057442362,1.69757457,659.54,658.87,2.26966665]
[1752057442560,1.69757457,659.53,658.87,2.26966665]
[1752057442759,1.69757457,659.54,658.87,2.26966665]
[1752057442964,1.69757457,659.53,658.87,2.26966665]
[1752057443263,1.69757457,659.54,658.87,2.26966665]
[1752057451468,1.69757457,659.56,658.84,4.13666665]
[1752057451668,1.69757457,659.56,658.84,1.867]
[1752057452168,1.69757457,659.56,658.84,4.13666665]
[1752057452369,1.69757457,659.55,658.84,4.13666665]
[1752057452569,1.69757457,659.55,658.85,2.26966665]
[1752057455971,1.69757457,659.55,658.89,0.26392929]
[1752057461367,1.69757457,659.53,658.89,2.53359594]
[1752057462272,1.69757457,659.53,658.9,2.26966665]
[1752057464172,1.69757457,659.52,658.9,2.26966665]
[1752057466272,1.69757457,659.52,658.91,2.26966665]
[1752057468170,1.69757457,659.51,658.91,2.26966665]
[1752057469178,1.69757457,659.51,658.92,2.26966665]
[1752057470174,1.69757457,659.5,658.92,2.26966665]
[1752057472074,1.69757457,659.51,658.9,2.26966665]
[1752057472275,1.69757457,659.51,658.91,2.26966665]
[1752057472476,1.69757457,659.51,658.9,2.26966665]
[1752057473180,1.69757457,659.51,658.89,2.53359594]
[1752057473376,1.69757457,659.51,658.89,0.26392929]
[1752057473780,1.69757457,659.52,658.89,0.26392929]
[1752057474181,1.69757457,659.51,658.89,0.26392929]
[1752057475881,1.69757457,659.51,658.89,2.53359594]
[1752057476177,1.69757457,659.49,658.91,2.26966665]
[1752057476381,1.69757457,659.52,658.89,0.26392929]
[1752057477279,1.69757457,659.51,658.89,0.26392929]
[1752057477580,1.69757457,659.53,658.89,0.26392929]
[1752057477779,1.69757457,659.52,658.89,0.26392929]
[1752057479278,1.69757457,659.51,658.89,0.26392929]
[1752057480479,1.69757457,659.52,658.89,0.26392929]
[1752057480878,1.69757457,659.54,658.89,2.53359594]
[1752057481180,1.69757457,659.52,658.94,2.26966665]
[1752057481377,1.69757457,659.52,658.93,2.26966665]
[1752057482182,1.69757457,659.51,658.95,2.26966665]
[1752057483284,1.69757457,659.5,658.96,2.188]
[1752057484183,1.69757457,659.5,658.96,4.45766665]
[1752057486287,1.69757457,659.5,658.96,2.188]
[1752057487388,1.69757457,659.5,658.96,4.45766665]
[1752057487584,1.69757457,659.48,659.0,2.26966665]
[1752057488186,1.69757457,659.48,659.01,2.26966665]
[1752057488385,1.69757457,659.48,659.0,2.26966665]
[1752057489391,1.69757457,659.48,659.01,2.26966665]
[1752057489993,1.69757457,659.49,658.99,2.26966665]
[1752057490891,5.6609416,660.19,658.96,2.188]
[1752057490892,1.69757457,659.48,659.0,2.26966665]
[1752057492293,1.69757457,659.49,659.0,2.26966665]
[1752057492794,1.69757457,659.49,658.99,2.26966665]
[1752057494895,2.26437664,659.6,658.99,2.26966665]
[1752057495093,1.70115491,659.49,658.99,2.26966665]
[1752057498198,1.70115491,659.49,659.0,2.26966665]
[1752057499300,1.70115491,659.5,658.98,2.26966665]
[1752057499698,1.70115491,659.49,658.98,2.26966665]
[1752057499898,1.70115491,659.49,658.99,2.26966665]
[1752057500193,1.70115491,659.51,658.96,2.188]
[1752057500599,1.70115491,659.55,658.96,2.188]
[1752057500895,1.70115491,659.55,659.08,2.26966665]
[1752057501095,1.70115491,659.55,659.07,2.26966665]
[1752057501397,1.70115491,659.56,659.07,2.26966665]
[1752057501600,1.70115491,659.56,659.06,2.26966665]
[1752057501801,1.70115491,659.56,659.05,2.26966665]
[1752057502195,1.70115491,659.57,659.05,2.26966665]
[1752057502601,1.70115491,659.57,659.04,2.26966665]
[1752057502902,1.70115491,659.59,659.06,2.26966665]
[1752057503200,1.70115491,659.6,659.06,2.26966665]
[1752057503798,1.70115491,659.6,659.05,2.26966665]
[1752057504002,2.26437664,659.72,659.05,2.26966665]
[1752057504298,1.70018835,659.61,659.07,2.26966665]
[1752057504498,1.70018835,659.62,659.05,2.26966665]
[1752057504698,1.70018835,659.61,659.05,2.26966665]
[1752057506208,1.70018835,659.62,659.04,2.26966665]
[1752057507006,1.70018835,659.62,659.05,2.26966665]
[1752057507203,1.70018835,659.62,659.04,2.26966665]
[1752057507503,1.70018835,659.62,659.05,2.26966665]
[1752057507806,1.70018835,659.64,659.02,2.26966665]
[1752057508003,1.70018835,659.7,659.08,2.26966665]
[1752057508207,1.70018835,659.71,659.07,2.26966665]
[1752057509103,1.70018835,659.72,659.06,2.26966665]
[1752057509806,1.70018835,659.73,659.04,2.26966665]
[1752057510007,1.70018835,659.73,659.03,2.26966665]
[1752057510204,1.70018835,659.74,659.03,2.26966665]
[1752057511207,1.70018835,659.74,659.02,2.26966665]
[1752057512106,1.70018835,659.75,659.02,2.26966665]
[1752057513206,1.70018835,659.75,659.01,2.26966665]
[1752057513810,1.70018835,659.75,659.02,2.26966665]
[1752057514213,1.70018835,659.76,659.01,2.26966665]
[1752057516812,1.70018835,659.76,659.0,2.26966665]
[1752057517112,1.70018835,659.77,659.0,2.26966665]
[1752057517316,1.70018835,659.79,658.96,2.188]
[1752057517621,1.70018835,659.78,658.96,4.45766665]
[1752057519214,1.70018835,659.79,658.96,2.26966665]
[1752057519818,1.70018835,659.78,658.97,2.26966665]
[1752057520819,1.70018835,659.79,658.97,2.26966665]
[1752057521215,1.70018835,659.79,658.96,2.26966665]
[1752057521814,1.70018835,659.79,658.97,2.496]
[1752057527216,1.70018835,659.77,659.02,2.26966665]
[1752057527421,1.70018835,659.77,659.01,2.26966665]
[1752057528119,1.70018835,659.77,659.0,2.26966665]
[1752057528316,1.70018835,659.77,659.01,2.26966665]
[1752057529722,1.70018835,659.77,659.02,2.26966665]
[1752057530922,1.70018835,659.77,659.03,2.26966665]
[1752057534224,1.70018835,659.76,659.03,2.26966665]
[1752057535323,1.70018835,659.76,659.04,2.26966665]
[1752057536322,1.70018835,659.76,659.05,2.26966665]
[1752057537124,5.6609416,660.47,658.97,2.496]
[1752057537125,1.70018835,659.74,659.09,2.26966665]
[1752057538830,1.70018835,659.78,658.99,2.26966665]
[1752057539528,1.70018835,659.78,659.01,2.26966665]
[1752057539833,1.70018835,659.78,659.0,2.26966665]
[1752057541534,1.70018835,659.78,659.01,2.26966665]
[1752057542132,1.70018835,659.78,659.0,2.26966665]
[1752057543032,1.70018835,659.78,658.99,2.26966665]
[1752057544537,1.70018835,659.78,658.98,2.26966665]
[1752057546135,1.70018835,659.78,658.99,2.26966665]
[1752057548141,1.70018835,659.78,659.0,2.26966665]
[1752057548742,1.70018835,659.76,659.04,2.26966665]
[1752057549444,1.70018835,659.76,659.05,2.26966665]
[1752057550144,1.70018835,659.76,659.04,2.26966665]
[1752057551045,1.70018835,659.75,659.04,2.26966665]
[1752057551341,1.70018835,659.75,659.05,2.26966665]
[1752057552245,1.70018835,659.75,659.06,2.26966665]
[1752057552746,1.70018835,659.74,659.08,2.26966665]
[1752057552947,1.70018835,659.74,659.07,2.26966665]
[1752057554146,1.70018835,659.73,659.08,2.26966665]
[1752057554443,1.70018835,659.73,659.09,2.26966665]
[1752057554742,1.70018835,659.73,659.1,2.26966665]
[1752057555146,1.70018835,659.72,659.1,2.26966665]
[1752057556045,1.70018835,659.72,659.11,2.26966665]
[1752057556246,1.70018835,659.71,659.12,2.26966665]
[1752057558145,1.70018835,659.7,659.13,2.26966665]
[1752057559247,1.70018835,659.69,659.14,2.26966665]
[1752057560150,1.70018835,659.67,659.17,2.26966665]
[1752057560451,1.70018835,659.68,659.15,2.26966665]
[1752057562152,1.70018835,659.67,659.15,2.26966665]
[1752057562754,1.70018835,659.67,659.16,2.26966665]
[1752057563250,1.70018835,659.67,659.17,2.26966665]
[1752057564153,2.26437664,659.78,659.17,2.26966665]
[1752057564354,1.70150938,659.66,659.17,2.26966665]
[1752057565051,1.70150938,659.66,659.18,2.26966665]
[1752057566154,1.70150938,659.65,659.19,2.26966665]
[1752057566958,1.70150938,659.65,659.2,2.26966665]
[1752057567154,1.70150938,659.64,659.21,2.26966665]
[1752057567757,1.70150938,659.64,659.2,2.26966665]
[1752057568756,1.70150938,659.64,659.21,2.26966665]
[1752057568954,1.70150938,659.64,659.2,2.26966665]
[1752057570358,1.70150938,659.64,659.21,2.26966665]
[1752057571754,7.92531824,660.49,659.17,2.26966665]
[1752057571755,1.70150938,659.66,659.17,2.26966665]
[1752057573861,1.70150938,659.65,659.17,2.26966665]
[1752057574162,1.70150938,659.66,659.17,2.26966665]
[1752057574358,1.70150938,659.66,659.16,2.26966665]
[1752057578771,1.70150938,659.66,659.17,2.26966665]
[1752057580571,1.70150938,659.71,659.05,2.26966665]
[1752057580868,1.70150938,659.67,659.12,2.26966665]
[1752057581472,1.70150938,659.68,659.14,2.26966665]
[1752057582068,3.39656496,659.95,659.13,2.26966665]
[1752057582069,1.70150938,659.67,659.13,2.26966665]
[1752057583272,1.70150938,659.68,659.14,2.26966665]
[1752057583472,1.70150938,659.7,659.16,2.26966665]
[1752057583774,1.70150938,659.74,659.2,2.26966665]
[1752057584466,1.70150938,659.73,659.23,2.26966665]
[1752057585272,1.70150938,659.74,659.23,2.26966665]
[1752057586271,1.70150938,659.74,659.22,2.26966665]
[1752057587375,1.70150938,659.75,659.22,2.26966665]
[1752057587972,1.70150938,659.75,659.2,2.26966665]
[1752057588377,1.70150938,659.76,659.2,2.26966665]
[1752057589474,1.70150938,659.78,659.2,2.26966665]
[1752057589674,1.70150938,659.78,659.16,2.26966665]
[1752057589874,1.70150938,659.79,659.16,2.26966665]
[1752057590677,1.70150938,659.79,659.15,2.26966665]
[1752057590875,1.70150938,659.79,659.16,2.26966665]
[1752057591077,1.70150938,659.8,659.13,2.26966665]
[1752057593278,1.70150938,659.81,659.12,2.26966665]
[1752057594180,1.70150938,659.8,659.13,2.26966665]
[1752057594479,1.70150938,659.81,659.12,2.26966665]
[1752057597786,1.70150938,659.81,659.13,2.26966665]
[1752057598286,1.70150938,659.81,659.12,2.26966665]
[1752057599487,1.70150938,659.8,659.14,2.26966665]
[1752057600084,1.70150938,659.8,659.15,2.26966665]
[1752057600489,1.70150938,659.8,659.16,2.571]
[1752057600784,1.70150938,659.78,659.19,2.26966665]
[1752057601085,1.70150938,659.79,659.19,2.26966665]
[1752057601486,1.70150938,659.79,659.18,2.26966665]
[1752057602587,1.70150938,659.79,659.17,2.26966665]
[1752057603186,1.70150938,659.8,659.16,2.571]
[1752057603684,1.70150938,659.8,659.16,4.84066665]
[1752057606790,1.70150938,659.8,659.16,2.571]
[1752057607286,1.70150938,659.8,659.16,4.84066665]
[1752057609693,1.70150938,659.8,659.16,2.571]
[1752057610192,1.70150938,659.81,659.16,2.571]
[1752057610792,1.70150938,659.8,659.16,2.571]
[1752057610992,1.70150938,659.81,659.16,2.571]
[1752057611792,1.70150938,659.82,659.16,2.571]
[1752057613392,1.70150938,659.81,659.16,2.571]
[1752057615698,1.70150938,659.82,659.16,2.571]
[1752057616101,1.69987628,659.82,659.16,2.571]
[1752057616796,1.69987628,659.81,659.16,2.571]
[1752057617501,1.69987628,659.82,659.1,2.26966665]
[1752057617996,1.69987628,659.83,659.1,2.26966665]
[1752057619698,1.69987628,659.82,659.11,2.26966665]
[1752057620198,1.69987628,659.82,659.1,2.26966665]
[1752057620596,1.69987628,659.82,659.11,2.167]
[1752057620900,1.69987628,659.81,659.12,2.26966665]
[1752057621397,1.69987628,659.82,659.12,2.26966665]
[1752057621602,1.69987628,659.81,659.13,2.26966665]
[1752057621799,2.26437664,659.95,659.13,2.26966665]
[1752057622004,1.69997554,659.81,659.13,2.26966665]
[1752057622401,1.69997554,659.81,659.14,2.26966665]
[1752057623301,1.69997554,659.81,659.13,2.26966665]
[1752057623601,1.69997554,659.81,659.12,2.26966665]
[1752057624405,1.69997554,659.81,659.13,2.26966665]
[1752057625502,1.69997554,659.81,659.14,2.26966665]
[1752057626406,1.69997554,659.8,659.14,2.26966665]
[1752057627405,1.69997554,659.8,659.11,2.167]
[1752057627406,1.69997554,659.79,659.16,2.26966665]
[1752057627602,1.70021739,659.79,659.16,2.26966665]
[1752057627806,1.70021739,659.79,659.17,2.26966665]
[1752057628500,1.70021739,659.79,659.18,2.26966665]
[1752057629404,1.70021739,659.79,659.17,2.26966665]
[1752057631408,1.70021739,659.78,659.18,2.26966665]
[1752057632304,1.70021739,659.78,659.19,2.26966665]
[1752057633107,1.70021739,659.8,659.14,2.26966665]
[1752057633506,1.70021739,659.8,659.15,2.26966665]
[1752057633707,1.70021739,659.79,659.15,2.26966665]
[1752057634007,1.70021739,659.86,659.2,2.26966665]
[1752057634210,1.70021739,659.86,659.19,2.26966665]
[1752057634605,1.70021739,659.84,659.29,2.26966665]
[1752057635316,1.70021739,659.85,659.29,2.26966665]
[1752057636210,1.70021739,659.85,659.28,2.26966665]
[1752057636410,5.6609416,660.57,658.89,0.26392929]
[1752057636411,1.70021739,659.88,659.3,2.345]
[1752057636606,1.70021739,659.89,659.3,2.345]
[1752057638208,1.70021739,659.9,659.3,2.345]
[1752057638407,1.70021739,659.89,659.3,2.345]
[1752057639207,1.70021739,659.9,659.3,2.345]
[1752057639510,1.70021739,659.89,659.3,2.345]
[1752057641008,1.70021739,659.9,659.3,2.345]
[1752057642412,1.70021739,659.89,659.3,2.345]
[1752057643109,1.70021739,659.9,659.3,2.345]
[1752057643808,1.70021739,659.91,659.3,2.345]
[1752057646214,1.70021739,659.9,659.3,2.345]
[1752057646410,1.70021739,659.89,659.3,2.345]
[1752057647314,1.70021739,659.88,659.3,2.345]
[1752057650315,1.70021739,659.89,659.3,2.345]
[1752057650516,1.70021739,659.84,659.31,2.26966665]
[1752057650824,1.70021739,659.85,659.3,4.61466665]
[1752057651020,1.70021739,659.84,659.3,2.345]
[1752057651320,1.70021739,659.78,659.3,2.345]
[1752057651922,1.70021739,659.79,659.3,2.345]
[1752057652521,1.70021739,659.8,659.3,2.345]
[1752057659732,1.70021739,659.81,659.3,2.345]
[1752057661331,1.69971801,659.81,659.3,2.345]
[1752057661728,1.69971801,659.8,659.3,2.345]
[1752057664133,1.69971801,659.81,659.3,2.345]
[1752057668432,1.69971801,659.81,659.15,2.26966665]
[1752057669632,1.69971801,659.81,659.16,2.26966665]
[1752057670235,1.69971801,659.8,659.17,2.26966665]
[1752057671935,1.69971801,659.8,659.18,1.886]
[1752057672140,1.69971801,659.81,659.18,1.886]
[1752057672942,1.69971801,659.8,659.18,1.886]
[1752057674042,1.69971801,659.8,659.18,4.15566665]
[1752057675239,1.69971801,659.79,659.2,2.26966665]
[1752057676843,1.69971801,659.79,659.21,2.26966665]
[1752057677243,1.69971801,659.79,659.2,2.26966665]
[1752057678245,1.69971801,659.79,659.18,4.15566665]
[1752057679540,1.69971801,659.79,659.19,2.26966665]
[1752057680339,1.69971801,659.79,659.18,4.15566665]
[1752057681044,1.69971801,659.79,659.19,2.26966665]
[1752057681945,1.69971801,659.78,659.19,2.26966665]
[1752057683143,1.69971801,659.82,659.18,1.886]
[1752057683345,1.69971801,659.89,659.18,1.886]
[1752057687146,1.69971801,659.91,659.18,1.886]
[1752057688249,1.69971801,659.92,659.18,1.886]
[1752057690051,1.69971801,659.93,659.18,1.886]
[1752057693154,1.69971801,659.9,659.18,1.886]
[1752057696054,1.69971801,659.89,659.18,1.886]
[1752057697057,1.69971801,659.86,659.18,1.886]
[1752057698253,1.69971801,659.85,659.18,1.886]
[1752057698759,5.6609416,660.85,659.18,1.886]
[1752057698760,1.69971801,659.84,659.18,1.886]
[1752057702659,1.69971801,659.82,659.18,1.886]
[1752057702959,1.69971801,659.81,659.2,2.26966665]
[1752057704961,1.69971801,659.8,659.21,2.26966665]
[1752057705258,1.69971801,659.78,659.25,2.26966665]
[1752057706763,1.69971801,659.78,659.24,2.26966665]
[1752057707060,2.26437664,659.91,659.24,2.26966665]
[1752057707264,1.70134021,659.78,659.25,2.26966665]
[1752057709163,1.70134021,659.77,659.26,2.26966665]
[1752057710767,1.70134021,659.77,659.25,2.26966665]
[1752057711164,1.70134021,659.77,659.26,2.26966665]
[1752057712669,5.6609416,660.52,659.28,2.26966665]
[1752057712670,1.70134021,659.76,659.28,2.26966665]
[1752057712965,1.70134021,659.79,659.21,2.26966665]
[1752057713164,2.26437664,659.93,659.18,1.886]
[1752057713165,1.70134021,659.78,659.22,2.26966665]
[1752057713366,1.70134021,659.8,659.24,2.26966665]
[1752057713970,1.70134021,659.8,659.23,2.26966665]
[1752057715266,1.70134021,659.81,659.23,2.26966665]
[1752057717568,1.70134021,659.81,659.21,2.26966665]
[1752057718173,1.70134021,659.82,659.21,2.26966665]
[1752057718474,1.70134021,659.82,659.2,2.26966665]
[1752057722177,2.26437664,659.97,659.2,2.26966665]
[1752057722473,1.70182657,659.82,659.2,2.26966665]
[1752057722876,1.70182657,659.82,659.18,1.886]
[1752057722877,1.70182657,659.81,659.24,2.26966665]
[1752057723280,1.70182657,659.81,659.23,2.26966665]
[1752057723580,1.70182657,659.81,659.24,2.26966665]
[1752057723781,1.70182657,659.81,659.23,2.26966665]
[1752057724276,1.70182657,659.82,659.21,2.26966665]
[1752057724682,1.70182657,659.81,659.21,2.26966665]
[1752057725182,1.70182657,659.82,659.21,2.26966665]
[1752057726589,1.70182657,659.89,659.18,1.886]
[1752057726888,1.70182657,659.85,659.2,2.26966665]
[1752057727090,1.70182657,660.12,659.46,2.26966665]
[1752057727287,1.70182657,660.16,659.41,2.26966665]
[1752057728192,1.70182657,660.19,659.39,2.26966665]
[1752057729290,1.70182657,660.2,659.37,2.26966665]
[1752057730192,1.70182657,660.22,659.36,2.26966665]
[1752057730592,1.70182657,660.22,659.35,2.26966665]
[1752057731194,1.70182657,660.23,659.33,2.26966665]
[1752057731891,1.70182657,660.22,659.37,2.26966665]
[1752057732192,1.70182657,660.22,659.35,2.26966665]
[1752057732496,1.70182657,660.24,659.32,2.26966665]
[1752057732795,1.70182657,660.23,659.3,2.26966665]
[1752057732993,1.70182657,660.23,659.33,2.414]
[1752057733991,1.70182657,660.24,659.33,2.414]
[1752057734294,3.39656496,660.58,659.33,2.414]
[1752057734295,1.70182657,660.23,659.33,2.414]
[1752057734495,1.70182657,660.2,659.33,2.414]
[1752057734693,1.70182657,660.18,659.33,2.414]
[1752057734892,1.70182657,660.17,659.33,2.414]
[1752057736394,1.70182657,660.16,659.33,2.414]
[1752057738599,1.70182657,660.17,659.33,2.414]
[1752057740100,1.70182657,660.18,659.33,2.414]
[1752057742699,1.70182657,660.17,659.33,2.414]
[1752057742905,1.70182657,660.18,659.33,2.414]
[1752057744001,1.70182657,660.17,659.33,2.414]
[1752057748311,1.70182657,660.15,659.33,2.414]
[1752057748707,2.26437664,660.32,659.33,2.414]
[1752057748708,1.70182657,660.14,659.33,2.414]
[1752057750813,1.70182657,660.13,659.33,2.414]
[1752057755614,1.70182657,660.12,659.33,2.414]
[1752057757514,1.70182657,660.11,659.33,2.414]
[1752057758019,1.70182657,660.1,659.33,2.414]
[1752057760221,1.70182657,660.19,659.33,2.414]
[1752057761320,1.70182657,660.18,659.33,2.414]
[1752057766919,1.70182657,660.18,659.11,2.26966665]
[1752057767124,1.70182657,660.18,659.12,2.26966665]
[1752057769321,0.99625645,660.36,659.13,2.26966665]
[1752057769322,1.70182657,660.17,659.13,2.26966665]
[1752057769826,1.70182657,660.17,659.14,2.203]
[1752057770025,1.70182657,660.11,659.27,2.26966665]
[1752057770322,1.70182657,660.11,659.28,2.26966665]
[1752057771926,1.70182657,660.13,659.24,2.26966665]
[1752057772327,1.70182657,660.13,659.25,2.26966665]
[1752057773429,1.70182657,660.12,659.25,2.26966665]
[1752057773629,1.70182657,660.15,659.2,2.26966665]
[1752057775130,1.70182657,660.15,659.21,2.26966665]
[1752057775331,1.70182657,660.14,659.21,2.26966665]
[1752057776327,1.70182657,660.14,659.22,2.26966665]
[1752057777333,1.70182657,660.13,659.22,2.26966665]
[1752057778234,1.70182657,660.13,659.23,2.26966665]
[1752057778435,1.70182657,660.14,659.2,2.26966665]
[1752057781242,1.70182657,660.13,659.21,2.26966665]
[1752057781439,1.70182657,660.13,659.14,2.203]
[1752057781440,1.70182657,660.12,659.22,2.26966665]
[1752057781844,1.70182657,660.13,659.22,2.26966665]
[1752057782440,1.70182657,660.12,659.23,2.26966665]
[1752057783146,1.70182657,660.08,659.33,2.26966665]
[1752057783345,1.70182657,660.08,659.32,2.26966665]
[1752057783543,1.70182657,660.04,659.42,2.26966665]
[1752057784141,1.70182657,660.03,659.43,2.26966665]
[1752057784343,1.70182657,660.02,659.44,2.26966665]
[1752057784553,1.70182657,660.03,659.42,2.26966665]
[1752057784746,1.70182657,660.03,659.41,2.26966665]
[1752057785241,2.26437664,660.15,659.14,2.203]
[1752057785242,1.70182657,660.02,659.42,2.26966665]
[1752057785747,1.70182657,660.02,659.41,2.26966665]
[1752057785944,1.70182657,660.03,659.38,2.26966665]
[1752057786345,1.70182657,660.02,659.39,2.26966665]
[1752057786845,1.70182657,660.02,659.4,2.26966665]
[1752057787145,1.70182657,660.01,659.4,2.26966665]
[1752057787555,1.70182657,660.0,659.42,2.26966665]
[1752057787751,1.70182657,660.0,659.43,2.26966665]
[1752057788146,1.70182657,660.0,659.44,2.26966665]